bitfinex-derivatives/quotes_ETHF0:USTF0_20240830
["timestamp","ask_amount","ask_price","bid_price","bid_amount"]
[1725002124096,0.7442,2529.5,2529.1,0.40129733]
[1725002124097,1.13951,2529.5,2529.1,0.40129733]
[1725002124303,0.39533,2529.4,2529.1,0.00592733]
[1725002125201,1.13952,2529.5,2529.1,0.00592733]
[1725002125590,3.42,2529.4,2529.1,0.00592733]
[1725002126292,3.81534,2529.4,2529.1,0.00592733]
[1725002126491,3.81536,2529.2,2529.1,0.00592733]
[1725002126897,7.76896,2529.2,2529.1,0.00592733]
[1725002127805,3.42,2529.4,2529.1,0.40129733]
[1725002127997,3.42,2529.4,2529.2,0.39535]
[1725002132508,3.42,2529.4,2529.3,0.39534]
[1725002132697,0.7442,2529.5,2529.3,0.39534]
[1725002133405,0.7442,2529.5,2529.2,0.75585]
[1725002134503,7.3952,2529.6,2529.2,0.75585]
[1725002134504,3.5799,2529.6,2529.2,0.3605]
[1725002134699,0.3882,2529.7,2529.5,0.39531]
[1725002135004,0.7766,2529.7,2529.5,0.39531]
[1725002137415,0.7766,2529.7,2529.6,0.39529]
[1725002138607,0.7766,2529.7,2529.3,3.2078]
[1725002138907,0.7766,2529.7,2529.4,0.39532]
[1725002140613,0.7766,2529.7,2529.5,0.39531]
[1725002143114,0.7766,2529.7,2529.4,0.39532]
[1725002144315,0.7766,2529.7,2529.5,0.39531]
[1725002145402,0.7766,2529.7,2529.4,0.39532]
[1725002145712,4.57466086,2529.6,2529.4,0.39532]
[1725002145910,0.3687,2529.5,2529.4,0.39532]
[1725002147112,0.7766,2529.7,2529.5,0.39531]
[1725002147312,1.1675,2529.7,2529.5,0.39531]
[1725002147509,1.1675,2529.7,2529.3,3.2078]
[1725002147704,1.1675,2529.7,2529.4,0.39532]
[1725002149116,1.1675,2529.7,2529.3,3.2078]
[1725002149318,1.1675,2529.7,2529.3,3.60314]
[1725002149521,1.1675,2529.7,2529.3,3.2078]
[1725002149712,1.1675,2529.7,2529.1,0.00592733]
[1725002149713,0.39532,2529.5,2529.1,0.00592733]
[1725002150221,0.39534,2529.4,2529.1,0.00592733]
[1725002150416,0.7472,2529.3,2529.1,0.00592733]
[1725002150614,1.52094,2529.3,2529.1,0.00592733]
[1725002150812,1.1256,2529.3,2529.1,0.00592733]
[1725002162319,1.1256,2529.3,2529.2,0.39536]
[1725002162723,7.77709,2529.7,2529.2,0.39536]
[1725002162921,1.0887,2529.6,2529.2,0.39536]
[1725002163126,5.47092557,2529.6,2529.2,0.39536]
[1725002163328,1.0887,2529.6,2529.5,0.39531]
[1725002164331,1.0887,2529.6,2529.5,3.60311]
[1725002164528,4.174,2529.7,2529.6,0.39529]
[1725002164728,4.174,2529.7,2529.6,4.34809]
[1725002168021,0.3545,2529.9,2529.7,0.39527]
[1725002168220,0.3545,2529.9,2529.7,4.34807]
[1725002168620,0.3545,2529.9,2529.7,0.39527]
[1725002168824,0.7516,2530.1,2529.5,3.5942]
[1725002169030,0.3771,2529.8,2529.6,0.39529]
[1725002169438,0.3771,2529.8,2529.7,0.39528]
[1725002170634,0.7516,2530.1,2529.7,3.9528]
[1725002170834,0.3771,2530.0,2529.8,0.39526]
[1725002171733,0.3771,2530.0,2529.9,0.39525]
[1725002174132,0.3771,2530.0,2529.9,1.41518574]
[1725002174527,4.174,2530.4,2530.1,0.39521]
[1725002174829,1.0925,2530.4,2530.0,1.0218147]
[1725002175035,1.0925,2530.4,2530.1,41.8218147]
[1725002175231,1.0925,2530.4,2530.1,41.19521]
[1725002175434,1.0925,2530.4,2530.1,41.8218147]
[1725002175742,1.0925,2530.4,2530.1,42.2170247]
[1725002176038,1.0925,2530.4,2530.2,0.39519]
[1725002176636,1.0925,2530.4,2530.1,45.0296147]
[1725002176637,1.0925,2530.4,2530.3,0.39519]
[1725002177554,0.3607,2530.4,2530.3,4.34719]
[1725002177732,0.00592733,2530.5,2530.4,0.39517]
[1725002177934,0.00592733,2530.5,2530.4,9.1593758]
[1725002178132,0.00592733,2530.5,2530.4,15.15868283]
[1725002178327,0.00592733,2530.5,2530.4,14.1386158]
[1725002178740,0.00592733,2530.5,2530.4,15.15872789]
[1725002179334,0.00592733,2530.5,2530.4,14.1386158]
[1725002179632,0.00592733,2530.5,2530.4,15.15872789]
[1725002179832,0.00592733,2530.5,2530.4,14.1386158]
[1725002180027,0.00592733,2530.5,2530.4,3.4045458]
[1725002180239,0.00592733,2530.5,2530.1,41.82011209]
[1725002180441,0.36062733,2530.5,2530.1,40.8]
[1725002180628,0.3559,2530.4,2530.1,40.8]
[1725002180834,0.3607,2530.3,2530.1,40.8]
[1725002181438,3.42,2530.2,2530.0,3.2078]
[1725002181635,3.42,2530.2,2529.8,1.02011209]
[1725002181636,6.6278,2530.2,2529.6,3.60309]
[1725002181837,0.3844,2530.1,2529.6,3.60309]
[1725002182039,0.3844,2530.1,2529.7,41.19527]
[1725002182638,0.3844,2530.1,2529.7,40.8]
[1725002185340,3.81524,2530.0,2529.7,40.8]
[1725002185538,7.58465511,2530.0,2529.4,1.02011209]
[1725002185733,3.42,2529.8,2529.3,1.02011209]
[1725002185939,0.39531,2529.5,2529.2,40.8]
[1725002186143,3.8153,2529.6,2529.2,40.8]
[1725002186339,3.42,2529.6,2529.3,0.19692633]
[1725002186744,3.8153,2529.6,2529.2,40.8]
[1725002187647,3.8153,2529.6,2529.2,40.9993968]
[1725002188447,3.8153,2529.6,2529.2,40.8]
[1725002191344,6.6278,2529.6,2529.2,40.8]
[1725002191548,0.39532,2529.5,2529.2,40.8]
[1725002191951,7.0231,2529.6,2529.2,41.19535]
[1725002193051,7.0231,2529.6,2529.2,40.8]
[1725002194352,7.0231,2529.6,2529.2,41.19535]
[1725002195148,7.0231,2529.6,2529.2,40.8]
[1725002196349,7.0231,2529.6,2529.2,41.19536]
[1725002196949,7.0231,2529.6,2529.2,40.8]
[1725002198054,0.39532,2529.5,2529.2,40.8]
[1725002198553,0.39534,2529.3,2529.2,40.8]
[1725002198849,3.60314,2529.3,2529.2,40.8]
[1725002199042,3.97554,2529.3,2529.2,40.8]
[1725002199948,0.39536,2529.2,2529.1,0.00592733]
[1725002200153,8.51526,2529.2,2529.1,0.00592733]
[1725002200456,12.657386,2529.2,2529.1,0.00592733]
[1725002200751,18.657386,2529.2,2529.1,0.00592733]
[1725002201558,0.39542,2528.8,2528.7,40.8]
[1725002201748,3.81542,2528.8,2528.7,40.8]
[1725002202551,3.60321,2528.9,2528.7,40.8]
[1725002203152,3.2078,2528.9,2528.7,40.8]
[1725002203543,0.39542,2528.8,2528.7,40.8]
[1725002203749,3.60321,2528.9,2528.7,40.8]
[1725002204057,0.39542,2528.8,2528.7,40.8]
[1725002204450,3.81542,2528.8,2528.7,40.8]
[1725002204647,4.20362,2528.8,2528.7,40.8]
[1725002205054,3.8082,2528.8,2528.7,40.8]
[1725002205653,4.20362,2528.8,2528.7,40.8]
[1725002206049,8.15802,2528.8,2528.7,40.8]
[1725002206453,12.70781782,2528.8,2528.7,40.8]
[1725002206855,0.39544,2528.7,2528.5,0.00592733]
[1725002207054,6.6278,2528.6,2528.5,0.00592733]
[1725002207259,7.02325,2528.6,2528.5,0.00592733]
[1725002207555,10.97845,2528.6,2528.5,0.00592733]
[1725002207962,15.22794086,2528.6,2528.5,0.00592733]
[1725002208454,21.22794086,2528.6,2528.5,0.00592733]
[1725002208859,15.22794086,2528.6,2528.5,0.00592733]
[1725002210361,11.62469086,2528.6,2528.5,0.00592733]
[1725002211258,7.66949086,2528.6,2528.5,0.00592733]
[1725002211462,11.62469086,2528.6,2528.5,0.00592733]
[1725002211959,7.66949086,2528.6,2528.5,0.00592733]
[1725002212857,3.42,2528.6,2528.5,0.00592733]
[1725002213061,3.42,2528.6,2528.5,0.40139733]
[1725002213868,0.3604,2528.7,2528.6,0.39545]
[1725002214566,0.3604,2528.7,2528.5,0.40138733]
[1725002215668,3.8082,2528.8,2528.6,0.39545]
[1725002215863,3.8082,2528.8,2528.7,0.39544]
[1725002216062,3.80062733,2529.0,2528.7,0.39544]
[1725002216358,4.23522113,2528.9,2528.7,0.39544]
[1725002217162,0.00592733,2529.0,2528.8,4.34982]
[1725002217362,0.00592733,2529.0,2528.9,1.1318]
[1725002217863,0.00592733,2529.0,2528.9,11.0862]
[1725002218066,0.7533,2529.6,2529.4,0.39532]
[1725002218358,7.594,2529.8,2528.9,14.1108]
[1725002218359,7.594,2529.8,2529.5,0.39531]
[1725002218567,7.594,2529.8,2529.4,0.39532]
[1725002218757,4.11522625,2529.7,2529.4,0.39532]
[1725002219169,4.11522625,2529.7,2529.3,0.41993]
[1725002219354,0.3786,2529.6,2529.3,0.41993]
[1725002221252,0.3786,2529.6,2529.4,0.39532]
[1725002222665,4.11522625,2529.7,2529.4,0.39532]
[1725002222861,4.11522625,2529.7,2529.5,0.3686]
[1725002223668,4.11522625,2529.7,2529.6,40.8]
[1725002225268,3.42592733,2529.8,2529.6,40.8]
[1725002225269,0.00592733,2529.8,2529.6,40.8]
[1725002225466,0.00592733,2529.8,2529.6,41.19528]
[1725002225964,0.00592733,2529.8,2529.6,40.8]
[1725002226669,0.00592733,2529.8,2529.6,41.19529]
[1725002228169,0.00592733,2529.8,2529.7,0.39528]
[1725002228863,0.00592733,2529.8,2529.7,7.55588]
[1725002229284,0.00592733,2529.8,2529.7,48.35588]
[1725002230576,0.00592733,2529.8,2529.7,49.34409]
[1725002231167,0.00592733,2529.8,2529.7,48.35588]
[1725002240173,0.00592733,2529.8,2529.7,47.9606]
[1725002240368,0.00592733,2529.8,2529.7,40.8]
[1725002240874,0.00592733,2529.8,2529.4,3.60312]
[1725002241073,0.37752733,2529.8,2529.4,3.2078]
[1725002241273,0.37752733,2529.8,2529.5,41.1953]
[1725002245572,0.37752733,2529.8,2529.6,0.39529]
[1725002245879,0.37752733,2529.8,2529.5,40.8]
[1725002246191,0.00592733,2529.8,2529.7,3.60308]
[1725002246478,0.00592733,2529.8,2529.7,3.98198]
[1725002246785,0.00592733,2529.8,2529.7,7.93478]
[1725002247088,0.00592733,2529.8,2529.7,7.55588]
[1725002248185,0.00592733,2529.8,2529.7,7.58058]
[1725002253275,0.00592733,2529.8,2529.7,13.58058]
[1725002253474,0.00592733,2529.8,2529.7,17.00058]
[1725002255180,0.00592733,2529.8,2529.7,19.00890209]
[1725002255781,0.00592733,2529.8,2529.7,17.98879]
[1725002256083,0.00592733,2529.8,2529.7,19.00890209]
[1725002256289,0.00592733,2529.8,2529.7,18.02017851]
[1725002256678,0.00592733,2529.8,2529.7,3.60308]
[1725002257378,0.00592733,2529.8,2529.5,40.8]
[1725002257691,0.00592733,2529.8,2529.6,0.39529]
[1725002258593,0.00592733,2529.8,2529.5,41.1953]
[1725002258796,0.00592733,2529.8,2529.6,0.39529]
[1725002259684,0.00592733,2529.8,2529.5,40.8]
[1725002260797,3.42,2529.7,2529.3,1.01959851]
[1725002260980,0.7161,2529.6,2529.2,1.21254439]
[1725002261182,1.1114,2529.6,2529.2,1.01959851]
[1725002261384,0.3637,2529.5,2529.3,40.8]
[1725002261786,0.3637,2529.5,2529.3,42.02083904]
[1725002261992,0.3637,2529.5,2529.4,1.01959851]
[1725002262400,0.3637,2529.5,2529.3,42.02083904]
[1725002263594,0.3637,2529.5,2529.3,41.81959851]
[1725002265395,0.3637,2529.5,2529.3,40.8]
[1725002267199,0.3637,2529.5,2529.2,0.20222884]
[1725002267697,0.3637,2529.5,2529.2,41.00222884]
[1725002267900,0.3637,2529.5,2529.2,41.19536]
[1725002268100,0.3637,2529.5,2529.2,42.02010863]
[1725002268300,0.3637,2529.5,2529.2,41.00051012]
[1725002272804,0.3637,2529.5,2529.2,41.39587012]
[1725002272995,0.3637,2529.5,2529.2,42.41546863]
[1725002274005,0.3637,2529.5,2529.2,43.83546863]
[1725002275104,0.3637,2529.5,2529.2,43.44010863]
[1725002276305,0.3637,2529.5,2529.2,46.64790863]
[1725002276509,0.3637,2529.5,2529.2,45.62831012]
[1725002276799,0.3637,2529.5,2529.2,46.64790863]
[1725002277005,0.7161,2529.6,2529.5,0.39531]
[1725002277299,0.00592733,2529.8,2529.6,0.39529]
[1725002277300,0.39662733,2529.8,2529.6,0.39529]
[1725002277497,0.76722733,2529.8,2529.6,0.39529]
[1725002277897,0.00592733,2529.8,2529.7,0.39528]
[1725002278102,0.00592733,2529.8,2529.7,1.81528]
[1725002278297,0.00592733,2529.8,2529.7,5.76808]
[1725002278603,0.00592733,2529.8,2529.7,5.79308]
[1725002279008,0.00230766,2529.8,2529.7,15.30482636]
[1725002279508,0.00230766,2529.8,2529.7,15.30465512]
[1725002280094,0.00230766,2529.8,2529.7,13.88465512]
[1725002284198,0.00230766,2529.8,2529.7,12.34952517]
[1725002285007,0.00230766,2529.8,2529.7,13.33773517]
[1725002286604,0.00230766,2529.8,2529.7,14.87354238]
[1725002287013,0.00230766,2529.8,2529.7,13.88533238]
[1725002287216,0.00230766,2529.8,2529.7,7.88533238]
[1725002287710,0.00230766,2529.8,2529.7,7.88542305]
[1725002288600,0.00230766,2529.8,2529.7,48.68542305]
[1725002291011,0.00230766,2529.8,2529.7,47.14961584]
[1725002291403,0.00230766,2529.8,2529.7,54.13782584]
[1725002292615,0.00230766,2529.8,2529.7,54.13764813]
[1725002297511,0.00230766,2529.8,2529.7,57.34546849]
[1725002300014,0.00230766,2529.8,2529.7,60.29979284]
[1725002301109,0.00230766,2529.8,2529.7,59.28658284]
[1725002301412,0.00230766,2529.8,2529.7,53.28658284]
[1725002302405,0.00230766,2529.8,2529.7,53.28671554]
[1725002303608,0.00230766,2529.8,2529.7,54.27492554]
[1725002304407,0.00230766,2529.8,2529.7,63.94808691]
[1725002307411,0.00230766,2529.8,2529.7,63.9479253]
[1725002309107,0.00230766,2529.8,2529.7,62.9597153]
[1725002309608,0.00230766,2529.8,2529.7,56.9597153]
[1725002309810,0.00230766,2529.8,2529.7,62.9597153]
[1725002310416,0.00230766,2529.8,2529.7,56.9597153]
[1725002312124,0.00230766,2529.8,2529.7,56.95977621]
[1725002312420,0.00230766,2529.8,2529.7,53.75197621]
[1725002312611,0.00230766,2529.8,2529.7,56.95977621]
[1725002313622,0.00230766,2529.8,2529.7,62.95977621]
[1725002315412,0.00230766,2529.8,2529.7,63.35577621]
[1725002315616,0.00230766,2529.8,2529.7,62.95977621]
[1725002316117,0.00230766,2529.8,2529.7,63.35577621]
[1725002316423,0.00230766,2529.8,2529.7,62.95977621]
[1725002316609,0.00230766,2529.8,2529.7,63.35577621]
[1725002316814,0.00230766,2529.8,2529.7,56.95977621]
[1725002317010,0.00230766,2529.8,2529.7,45.98421049]
[1725002317211,0.00230766,2529.8,2529.7,1.02422019]
[1725002317212,3.95510766,2529.8,2529.7,1.02422019]
[1725002317416,3.9528,2529.7,2529.3,4.74339023]
[1725002317621,3.9528,2529.7,2529.4,1.02459903]
[1725002317622,1.42,2529.6,2529.4,1.02459903]
[1725002317823,5.3736,2529.6,2529.3,1.02459903]
[1725002318217,5.3736,2529.6,2529.5,40.8]
[1725002318717,11.3736,2529.6,2529.5,40.8]
[1725002319127,11.3736,2529.6,2529.3,1.02459903]
[1725002319315,1.42,2529.4,2529.1,1.02459903]
[1725002319615,0.39529,2529.7,2529.1,2.44459903]
[1725002319814,1.42,2529.7,2529.2,1.02459903]
[1725002320016,5.84388225,2529.7,2529.2,1.02459903]
[1725002320329,5.84388225,2529.7,2529.4,40.8]
[1725002320330,9.79748225,2529.7,2529.4,40.8]
[1725002320524,5.84388225,2529.7,2529.4,40.8]
[1725002320724,4.3447,2529.6,2529.4,40.8]
[1725002321028,3.9536,2529.5,2529.4,40.8]
[1725002324325,0.3911,2529.6,2529.4,40.8]
[1725002324326,0.3911,2529.6,2529.4,42.42034168]
[1725002324527,0.3911,2529.6,2529.4,43.84026071]
[1725002324933,0.3911,2529.6,2529.5,0.39531]
[1725002325135,0.00230766,2529.8,2529.5,0.39531]
[1725002325334,0.00230766,2529.8,2529.6,5.004]
[1725002326536,0.00230766,2529.8,2529.7,0.39528]
[1725002326732,0.00230766,2529.8,2529.7,0.77228]
[1725002327124,0.00230766,2529.8,2529.7,41.57228]
[1725002327332,0.00230766,2529.8,2529.7,42.59687903]
[1725002330535,0.00230766,2529.8,2529.7,41.57228]
[1725002330839,0.00230766,2529.8,2529.7,41.177]
[1725002331037,0.00230766,2529.8,2529.7,40.8]
[1725002332943,0.00230766,2529.8,2529.7,44.0078]
[1725002334835,0.00230766,2529.8,2529.7,40.8]
[1725002335153,0.00230766,2529.8,2529.7,44.0078]
[1725002335946,0.00230766,2529.8,2529.7,40.8]
[1725002336148,0.00230766,2529.8,2529.7,44.0078]
[1725002337547,0.00230766,2529.8,2529.7,45.03239903]
[1725002337947,0.00230766,2529.8,2529.7,45.40339903]
[1725002339640,0.00230766,2529.8,2529.7,45.79867903]
[1725002342843,0.00230766,2529.8,2529.7,45.40339903]
[1725002343047,0.00230766,2529.8,2529.7,47.21867903]
[1725002343847,0.00230766,2529.8,2529.7,48.17064205]
[1725002344951,0.00230766,2529.8,2529.7,48.17063218]
[1725002345451,0.00230766,2529.8,2529.7,48.35045143]
[1725002345763,0.3731,2530.5,2530.0,0.39522]
[1725002346049,0.3731,2530.5,2530.1,5.3721]
[1725002346449,0.3731,2530.5,2530.2,40.8]
[1725002346664,4.3251,2530.5,2530.2,40.8]
[1725002349049,4.72026,2530.5,2530.2,40.8]
[1725002349257,6.14026,2530.5,2530.2,40.8]
[1725002349850,8.12348693,2530.4,2530.2,40.8]
[1725002350257,3.952,2530.3,2530.2,40.8]
[1725002350658,9.952,2530.3,2530.2,40.8]
[1725002352055,3.952,2530.3,2530.2,40.8]
[1725002358152,4.34719,2530.3,2530.2,40.8]
[1725002358357,3.952,2530.3,2530.2,40.8]
[1725002358557,4.34719,2530.3,2530.2,40.8]
[1725002358968,3.952,2530.3,2530.2,40.8]
[1725002360665,4.34719,2530.3,2530.2,40.8]
[1725002362163,5.76719,2530.3,2530.2,40.8]
[1725002362354,0.3952,2530.2,2530.1,0.00592733]
[1725002362554,4.3472,2530.2,2530.1,0.00592733]
[1725002362759,10.3472,2530.2,2530.1,0.00592733]
[1725002363056,0.39526,2529.8,2529.7,1.02570792]
[1725002363362,0.39526,2529.8,2529.5,5.75920792]
[1725002363363,1.81527,2529.8,2529.5,5.75920792]
[1725002363553,0.3597,2529.7,2529.6,40.8]
[1725002363753,2.17498,2529.7,2529.6,40.8]
[1725002363954,5.7325,2529.7,2529.6,40.8]
[1725002364366,6.12778,2529.7,2529.6,40.8]
[1725002364564,12.12778,2529.7,2529.5,0.765]
[1725002364765,4.34809,2529.6,2529.5,0.765]
[1725002364973,4.34809,2529.6,2529.5,41.565]
[1725002365463,4.34809,2529.6,2529.5,0.765]
[1725002366261,4.34809,2529.6,2529.5,0.3762]
[1725002366767,3.9528,2529.6,2529.5,0.3762]
[1725002368264,3.2078,2529.9,2529.5,1.7962]
[1725002368467,3.2078,2529.9,2529.6,0.3644]
[1725002368768,3.2078,2529.9,2529.7,0.3711]
[1725002369264,7.1606,2529.9,2529.7,0.3711]
[1725002369670,3.9528,2529.9,2529.7,0.3711]
[1725002377278,1.81523,2530.0,2529.7,0.3711]
[1725002377669,4.19652254,2529.9,2529.7,0.3711]
[1725002378374,8.14932254,2529.9,2529.7,0.3711]
[1725002378680,4.19652254,2529.9,2529.7,0.3711]
[1725002379376,1.81523,2530.0,2529.7,0.3711]
[1725002379377,7.3818,2530.2,2529.7,9.97740792]
[1725002379576,7.3818,2530.2,2529.8,1.42096792]
[1725002379766,7.3818,2530.2,2529.9,0.3872]
[1725002379970,7.3818,2530.2,2529.9,0.78245]
[1725002380266,7.3818,2530.2,2530.0,0.3896]
[1725002380470,7.3818,2530.2,2530.1,0.3583]
[1725002385174,3.2078,2530.2,2530.1,0.3583]
[1725002386177,1.81517,2530.4,2530.1,0.3583]
[1725002386178,1.42,2530.4,2530.1,0.3583]
[1725002386771,3.60296,2530.5,2530.1,0.3583]
[1725002386983,1.42,2530.4,2530.1,0.3583]
[1725002388484,1.42,2530.3,2530.1,0.3583]
[1725002389689,1.42,2530.3,2530.1,1.77922792]
[1725002390282,1.42,2530.4,2530.1,4.59180792]
[1725002390582,3.2078,2530.5,2530.2,1.42089792]
[1725002390777,4.6278,2530.5,2530.3,0.3768]
[1725002390985,0.3593,2530.4,2530.3,0.3768]
[1725002391494,4.3113,2530.4,2530.3,0.3768]
[1725002391988,4.70647,2530.4,2530.3,0.3768]
[1725002392383,0.39519,2530.3,2530.1,1.73990792]
[1725002392686,2.17448,2530.4,2530.1,2.13512792]
[1725002392994,0.39519,2530.3,2530.1,1.73990792]
[1725002393499,2.17448,2530.4,2530.1,1.73990792]
[1725002393682,0.39519,2530.3,2530.1,1.73990792]
[1725002394788,0.3952,2530.2,2530.1,1.73990792]
[1725002394989,0.39523,2530.0,2529.9,1.02570792]
[1725002395182,1.81523,2530.0,2529.9,1.02570792]
[1725002395688,1.81523,2530.0,2529.8,1.76230792]
[1725002395878,1.42,2530.0,2529.8,1.76230792]
[1725002396084,1.81524,2530.0,2529.8,1.76230792]
[1725002396490,1.81524,2530.0,2529.8,2.15756792]
[1725002396687,1.81524,2530.0,2529.8,1.76230792]
[1725002397490,1.81524,2530.0,2529.9,1.02570792]
[1725002400388,0.39518,2530.4,2529.9,6.39850792]
[1725002400595,3.2078,2530.5,2530.2,0.39519]
[1725002400895,3.60296,2530.5,2530.3,1.1179]
[1725002401495,3.60296,2530.5,2530.3,2.14438778]
[1725002403384,3.60296,2530.5,2530.3,1.1179]
[1725002404287,3.2078,2530.5,2530.3,1.1179]
[1725002404479,3.2078,2530.5,2530.3,2.14438778]
[1725002404684,3.2078,2530.5,2530.3,1.51308]
[1725002404890,3.2078,2530.5,2530.3,2.53956778]
[1725002405091,4.17992733,2530.6,2530.4,0.39517]
[1725002405294,4.17992733,2530.6,2530.5,0.39515]
[1725002405497,4.17992733,2530.6,2530.5,1.42163778]
[1725002405687,4.17992733,2530.6,2530.5,5.37363778]
[1725002405887,4.17992733,2530.6,2530.5,1.42163778]
[1725002406095,0.00592733,2530.6,2530.5,5.37363778]
[1725002406289,0.00592733,2530.6,2530.5,1.02648778]
[1725002406495,0.00592733,2530.6,2530.5,1.42163778]
[1725002406993,0.00592733,2530.6,2530.5,1.02648778]
[1725002409386,0.00592733,2530.6,2530.5,6.79363778]
[1725002409590,4.174,2531.0,2530.5,13.3481235]
[1725002409787,1.42,2531.2,2530.8,5.65197999]
[1725002409994,2.20265,2531.2,2530.9,0.7466]
[1725002410187,2.20265,2531.2,2531.0,40.8]
[1725002410997,2.20265,2531.2,2530.9,0.7466]
[1725002410998,0.39508,2531.0,2530.9,0.3763]
[1725002411188,0.39508,2531.0,2530.8,0.00592733]
[1725002412686,1.81509,2530.9,2530.8,0.37112733]
[1725002412891,1.42,2530.9,2530.8,0.37112733]
[1725002414394,0.39509,2531.0,2530.8,0.37112733]
[1725002414596,1.81509,2531.0,2530.8,0.37112733]
[1725002415293,0.39509,2530.9,2530.8,0.37112733]
[1725002415487,9.49283327,2530.9,2530.8,0.00592733]
[1725002415797,20.03668327,2530.9,2530.3,0.3686]
[1725002415987,5.02297,2530.4,2530.3,0.3686]
[1725002416390,1.81517,2530.4,2530.3,0.3686]
[1725002416591,0.39514,2530.6,2530.3,0.76378]
[1725002416795,1.81514,2530.6,2530.4,0.3542]
[1725002417093,4.28170331,2530.5,2530.4,0.3542]
[1725002417293,4.67685331,2530.5,2530.4,0.3542]
[1725002417491,8.62885331,2530.5,2530.4,0.3542]
[1725002417898,8.23370331,2530.5,2530.4,0.3542]
[1725002418404,8.62885331,2530.5,2530.4,0.3542]
[1725002421902,0.39517,2530.4,2530.3,0.3686]
[1725002422202,0.75747,2530.4,2530.3,0.3686]
[1725002422803,0.39519,2530.3,2530.2,0.00592733]
[1725002422992,8.97499,2530.3,2529.7,1.02417999]
[1725002423197,1.42,2529.8,2529.6,1.02417999]
[1725002423397,0.39529,2529.6,2529.5,1.39197999]
[1725002423699,1.81529,2529.6,2529.5,0.3678]
[1725002423905,0.39534,2529.3,2529.2,1.40457999]
[1725002424109,0.39534,2529.3,2528.9,1.93396189]
[1725002424110,0.39534,2529.3,2529.1,1.39197999]
[1725002424303,1.42,2529.2,2529.1,0.3678]
[1725002424493,1.81533,2529.4,2529.1,1.39197999]
[1725002425100,1.42592733,2529.5,2529.1,1.39197999]
[1725002425300,1.42592733,2529.5,2529.2,0.39535]
[1725002425608,0.00592733,2529.5,2529.4,0.39533]
[1725002425801,0.00592733,2529.5,2529.4,3.98353]
[1725002426004,1.7939,2530.1,2529.6,0.39528]
[1725002426206,1.7939,2530.1,2529.7,0.7269]
[1725002426505,0.39524,2530.0,2529.7,0.7269]
[1725002426714,1.42,2529.9,2529.7,0.7269]
[1725002428495,1.81525,2529.9,2529.7,0.7269]
[1725002429697,0.39526,2529.8,2529.7,0.3735]
[1725002429900,0.39526,2529.8,2529.4,1.78537999]
[1725002429901,0.3953,2529.6,2529.4,1.78537999]
[1725002430107,1.42,2529.5,2529.4,1.1524]
[1725002430501,0.3953,2529.6,2529.4,1.1524]
[1725002430700,2.18539,2529.7,2529.4,1.1524]
[1725002431906,0.3953,2529.6,2529.4,1.1524]
[1725002435302,0.39531,2529.5,2529.4,1.1524]
[1725002435604,1.81531,2529.5,2529.4,1.1524]
[1725002437602,5.76891,2529.5,2529.4,1.1524]
[1725002437915,8.5814,2529.5,2529.0,41.20130733]
[1725002438104,1.42,2529.2,2529.1,0.746]
[1725002440005,1.81536,2529.2,2529.1,0.746]
[1725002441109,1.42,2529.2,2529.1,0.746]
[1725002441610,1.81536,2529.2,2529.1,0.746]
[1725002442511,1.42,2529.3,2529.1,0.746]
[1725002443017,0.39533,2529.4,2529.1,0.746]
[1725002443018,3.37278858,2529.4,2529.3,0.39534]
[1725002443319,4.174,2529.6,2529.4,0.39533]
[1725002443615,0.00592733,2530.1,2529.7,0.39527]
[1725002443820,0.00592733,2530.1,2529.8,0.382]
[1725002445120,0.00592733,2530.1,2530.0,3.2078]
[1725002446417,0.00592733,2530.1,2530.0,3.9357]
[1725002447007,0.00592733,2530.1,2530.0,4.33093]
[1725002449812,0.00592733,2530.1,2530.0,3.9357]
[1725002450819,0.00592733,2530.1,2530.0,4.33093]
[1725002451018,0.00592733,2530.1,2530.0,3.9357]
[1725002452419,0.00592733,2530.1,2530.0,4.33093]
[1725002452826,0.00592733,2530.1,2530.0,8.28373]
[1725002453118,0.00592733,2530.1,2530.0,11.70373]
[1725002453321,3.2078,2530.6,2530.2,0.39519]
[1725002453514,3.2078,2530.6,2530.0,3.9357]
[1725002453719,3.81515,2530.5,2530.0,4.33092]
[1725002453918,3.42,2530.5,2530.0,4.33092]
[1725002454129,3.42,2530.5,2530.1,0.39521]
[1725002454520,3.81516,2530.5,2530.2,0.3586]
[1725002455824,0.39518,2530.4,2530.2,0.3586]
[1725002456031,3.81519,2530.3,2530.0,3.9357]
[1725002457529,0.3952,2530.2,2530.0,3.9357]
[1725002457920,3.81519,2530.3,2530.0,4.33093]
[1725002458321,3.81519,2530.3,2530.0,3.9357]
[1725002459227,3.42,2530.1,2529.6,4.23197999]
[1725002459524,3.42,2529.7,2529.6,0.39529]
[1725002459733,8.09226754,2530.0,2529.7,0.39528]
[1725002460023,3.81524,2530.0,2529.6,0.39528]
[1725002460229,4.81694162,2529.9,2529.6,0.39528]
[1725002460537,7.62949162,2529.9,2529.5,42.92977999]
[1725002460727,3.2078,2529.6,2529.3,1.02417999]
[1725002460914,0.39534,2529.3,2529.1,6.47761141]
[1725002461118,3.81534,2529.4,2529.1,5.45343142]
[1725002461315,0.39534,2529.3,2529.1,5.45343142]
[1725002461729,0.39534,2529.3,2529.1,0.7189]
[1725002461922,3.81533,2529.4,2529.1,0.7189]
[1725002462126,3.81534,2529.4,2529.1,0.7189]
[1725002462322,0.39534,2529.3,2529.1,0.7189]
[1725002462527,0.39537,2529.1,2529.0,1.03010732]
[1725002462724,0.39537,2529.1,2529.0,0.00592733]
[1725002464235,4.34977,2529.1,2529.0,0.00592733]
[1725002465025,8.57270161,2529.1,2529.0,0.00592733]
[1725002468233,9.56114161,2529.1,2529.0,0.00592733]
[1725002468545,9.56114161,2529.1,2528.6,0.7602]
[1725002468546,0.39544,2528.7,2528.6,0.7602]